bitfinex-derivatives/quotes_BTCF0:USTF0_20250722
["timestamp","ask_amount","ask_price","bid_price","bid_amount"]
[1753166240576,0.94157821,117790.0,117780.0,0.32010747]
[1753166240874,1.30237821,117790.0,117780.0,0.32010747]
[1753166241266,1.30237821,117790.0,117780.0,0.27477]
[1753166241476,1.30237821,117790.0,117780.0,0.4444905]
[1753166242072,1.30237821,117790.0,117780.0,0.27477]
[1753166244980,1.01669387,117790.0,117780.0,0.4444905]
[1753166245169,1.30237821,117790.0,117780.0,0.4444905]
[1753166247077,1.01669387,117790.0,117780.0,0.4444905]
[1753166247277,1.28220821,117790.0,117780.0,0.4444905]
[1753166247681,1.30237821,117790.0,117780.0,0.4444905]
[1753166250676,1.89313821,117790.0,117780.0,0.4444905]
[1753166251081,1.89309821,117790.0,117780.0,0.4444905]
[1753166251682,1.30237821,117790.0,117780.0,0.4444905]
[1753166251881,1.89309821,117790.0,117780.0,0.4444905]
[1753166252075,1.89309821,117790.0,117780.0,0.27477]
[1753166252279,0.2779003,117780.0,117770.0,0.96638737]
[1753166252483,0.72949464,117780.0,117770.0,1.06153737]
[1753166253179,0.72949464,117780.0,117770.0,0.47053737]
[1753166253382,0.72949464,117780.0,117770.0,1.06121737]
[1753166253582,0.72949464,117780.0,117770.0,1.06221737]
[1753166253783,0.72949464,117780.0,117770.0,0.47153737]
[1753166254474,1.68097464,117780.0,117770.0,0.28429484]
[1753166254674,1.68097464,117780.0,117770.0,0.001]
[1753166254675,1.87572567,117780.0,117770.0,0.001]
[1753166255384,0.2779146,117770.0,117760.0,0.15559255]
[1753166255579,1.28505997,117770.0,117760.0,0.06044255]
[1753166256780,1.28505997,117770.0,117760.0,0.37406155]
[1753166256985,1.28505997,117770.0,117760.0,0.22820255]
[1753166257781,1.28505997,117770.0,117760.0,0.06044255]
[1753166258381,1.57074431,117770.0,117760.0,0.04027255]
[1753166258584,0.265669,117760.0,117750.0,0.04027255]
[1753166258784,0.1697634,117750.0,117740.0,0.16776]
[1753166258992,1.05790774,117750.0,117740.0,0.11904]
[1753166259285,1.25265877,117750.0,117740.0,0.02389]
[1753166260483,0.1697778,117740.0,117730.0,0.36996935]
[1753166260689,0.89187317,117740.0,117730.0,0.39385935]
[1753166261484,1.28772214,117740.0,117730.0,0.39385935]
[1753166261789,1.84327317,117740.0,117730.0,0.29918935]
[1753166261989,1.84327317,117740.0,117730.0,0.30018935]
[1753166262584,1.84327317,117740.0,117730.0,0.23912935]
[1753166262785,1.84327317,117740.0,117730.0,0.12008935]
[1753166263187,1.86070105,117740.0,117730.0,0.12008935]
[1753166264696,1.86070105,117740.0,117730.0,0.14275935]
[1753166266088,1.92701344,117740.0,117730.0,0.14275935]
[1753166267498,1.92701344,117740.0,117730.0,0.12008935]
[1753166268594,1.92701344,117740.0,117730.0,0.101]
[1753166271101,1.33641344,117740.0,117730.0,0.101]
[1753166271301,1.92693344,117740.0,117730.0,0.101]
[1753166273199,0.19082,117720.0,117700.0,0.5306246]
[1753166273504,1.59760534,117710.0,117700.0,0.27173]
[1753166273702,1.79235637,117710.0,117700.0,0.27173]
[1753166275107,1.79235637,117710.0,117700.0,0.27373]
[1753166275706,1.79235637,117710.0,117700.0,0.27673]
[1753166276299,1.79435637,117710.0,117700.0,0.27373]
[1753166276608,1.79435637,117710.0,117700.0,0.16594]
[1753166276804,1.79435637,117710.0,117700.0,0.16394]
[1753166277199,1.79435637,117710.0,117700.0,0.0465]
[1753166277406,0.3606555,117700.0,117690.0,0.18310256]
[1753166277600,1.00713984,117700.0,117690.0,0.06917]
[1753166277903,1.21929561,117700.0,117690.0,0.0465]
[1753166278907,1.81073561,117700.0,117690.0,0.27173]
[1753166280106,1.22029561,117700.0,117690.0,0.27173]
[1753166280310,0.27174024,117700.0,117690.0,0.4415799]
[1753166280508,0.01840474,117700.0,117690.0,1.99846424]
[1753166280702,0.18824014,117700.0,117690.0,1.67846424]
[1753166280901,0.18824024,117700.0,117690.0,1.3927799]
[1753166281105,0.47392458,117700.0,117690.0,1.3927799]
[1753166281312,0.53578458,117700.0,117690.0,1.3927799]
[1753166281812,1.02554458,117700.0,117690.0,0.4415799]
[1753166282306,1.02454458,117700.0,117690.0,0.27273]
[1753166282612,1.21929561,117700.0,117690.0,0.16494]
[1753166282812,1.80969561,117700.0,117690.0,0.0475]
[1753166283213,1.80969561,117700.0,117690.0,0.16394]
[1753166283415,1.81069561,117700.0,117690.0,0.16394]
[1753166286319,1.81069561,117700.0,117690.0,0.06917]
[1753166288218,1.81069561,117700.0,117690.0,0.16394]
[1753166288726,0.3606843,117680.0,117670.0,1.37843885]
[1753166288924,0.64636864,117680.0,117670.0,1.41843885]
[1753166289416,0.64636864,117680.0,117670.0,0.82807885]
[1753166289417,0.63283864,117680.0,117670.0,0.82807885]
[1753166289617,0.63283864,117680.0,117670.0,0.93586885]
[1753166290220,0.63283864,117680.0,117670.0,0.93786885]
[1753166291513,0.63283864,117680.0,117670.0,0.93886885]
[1753166293021,0.63283864,117680.0,117670.0,0.9303337]
[1753166294223,0.63283864,117680.0,117670.0,0.8903337]
[1753166295217,0.63283864,117680.0,117670.0,1.3955573]
[1753166296124,0.63283864,117680.0,117670.0,1.40411507]
[1753166297023,0.63283864,117680.0,117670.0,0.81395507]
[1753166297225,0.63283864,117680.0,117670.0,1.40407507]
[1753166297622,0.63283864,117680.0,117670.0,0.81395507]
[1753166298116,0.63283864,117680.0,117670.0,0.64408777]
[1753166298312,0.99363864,117680.0,117670.0,0.27473]
[1753166298511,0.99363864,117680.0,117670.0,0.4446087]
[1753166298712,0.63283864,117680.0,117670.0,0.4446087]
[1753166299725,2.09493547,117680.0,117670.0,0.16694]
[1753166301123,2.09493547,117680.0,117670.0,0.27588]
[1753166302926,2.09493547,117680.0,117670.0,0.4457587]
[1753166305329,2.09493547,117680.0,117670.0,0.27588]
[1753166307632,2.09493547,117680.0,117670.0,0.21133]
[1753166309429,2.09493547,117680.0,117670.0,0.16694]
[1753166309934,2.09493547,117680.0,117670.0,0.0495]
[1753166310428,0.3605687,117670.0,117660.0,0.07452]
[1753166310626,1.20180407,117670.0,117660.0,0.07452]
[1753166310933,1.79164407,117670.0,117660.0,0.07452]
[1753166311634,1.20180407,117670.0,117660.0,0.17036]
[1753166311834,1.79164407,117670.0,117660.0,0.4491932]
[1753166312633,1.79164407,117670.0,117660.0,0.4521932]
[1753166312826,1.79164407,117670.0,117660.0,0.2823]
[1753166313026,1.79164407,117670.0,117660.0,0.2803]
[1753166313326,1.79164407,117670.0,117660.0,0.4501932]
[1753166314136,1.79164407,117670.0,117660.0,0.2803]
[1753166314527,1.79164407,117670.0,117660.0,0.4501932]
[1753166314727,1.79164407,117670.0,117660.0,0.2803]
[1753166315532,1.50595973,117670.0,117660.0,0.2803]
[1753166315732,1.79164407,117670.0,117660.0,0.2803]
[1753166315933,1.20180407,117670.0,117660.0,0.2803]
[1753166316134,1.79160407,117670.0,117660.0,0.2803]
[1753166317229,1.59685304,117670.0,117660.0,0.0831]
[1753166317534,1.79160407,117670.0,117660.0,0.05096]
[1753166318424,1.79999617,117670.0,117660.0,0.05096]
[1753166320534,1.79999617,117670.0,117660.0,0.001]
[1753166321935,1.79999617,117670.0,117660.0,0.05096]
[1753166322529,1.79160407,117670.0,117660.0,0.05096]
[1753166322732,1.79160407,117670.0,117660.0,0.07552]
[1753166324134,1.79160407,117670.0,117660.0,0.001]
[1753166325138,1.79160407,117670.0,117660.0,0.04609]
[1753166325538,1.79160407,117670.0,117660.0,0.06911]
[1753166326434,1.20180407,117670.0,117660.0,0.06911]
[1753166326634,1.79148407,117670.0,117660.0,0.04609]
[1753166327040,1.20180407,117670.0,117660.0,0.04609]
[1753166327441,1.79144407,117670.0,117660.0,0.001]
[1753166327938,1.79144407,117670.0,117660.0,1e-07]
[1753166328443,0.3669632,117660.0,117650.0,0.06811]
[1753166328742,0.3669776,117650.0,117640.0,0.16137]
[1753166328948,2.10071639,117650.0,117640.0,0.16137]
[1753166330338,2.10071639,117650.0,117640.0,0.16337]
[1753166330534,2.10071639,117650.0,117640.0,0.19378]
[1753166330739,2.10071639,117650.0,117640.0,0.20521]
[1753166330941,2.10071639,117650.0,117640.0,0.26969]
[1753166331142,1.81503205,117650.0,117640.0,0.26969]
[1753166332541,1.81503205,117650.0,117640.0,0.26769]
[1753166332741,1.81503205,117650.0,117640.0,0.26969]
[1753166333644,1.81503205,117650.0,117640.0,0.26869]
[1753166336845,0.27364668,117650.0,117640.0,0.7994121]
[1753166337050,0.47277102,117650.0,117640.0,1.3890121]
[1753166337445,0.47277102,117650.0,117640.0,1.38912046]
[1753166338950,0.53769102,117650.0,117640.0,1.02832046]
[1753166339149,0.53769102,117650.0,117640.0,1.38912046]
[1753166340452,0.47277102,117650.0,117640.0,1.38912046]
[1753166341252,0.47277102,117650.0,117640.0,1.44951545]
[1753166342649,0.47277102,117650.0,117640.0,1.61951544]
[1753166343049,0.18708668,117650.0,117640.0,1.61951544]
[1753166343657,0.47277102,117650.0,117640.0,1.61951544]
[1753166345858,0.55933102,117650.0,117640.0,1.61951544]
[1753166346752,0.55933102,117650.0,117640.0,1.44951545]
[1753166346953,0.53769102,117650.0,117640.0,1.44951545]
[1753166347454,0.55933102,117650.0,117640.0,1.44951545]
[1753166347855,0.65631102,117650.0,117640.0,0.91879335]
[1753166348051,0.65631102,117650.0,117640.0,0.26879836]
[1753166348052,0.95552536,117650.0,117640.0,0.26879836]
[1753166348356,1.51107639,117650.0,117640.0,0.06150335]
[1753166348749,1.22539205,117650.0,117640.0,0.08452335]
[1753166348945,1.22539205,117650.0,117640.0,0.17778335]
[1753166350353,1.88123241,117650.0,117640.0,0.22287335]
[1753166351154,1.88123241,117650.0,117640.0,0.16247836]
[1753166352155,1.88123241,117650.0,117630.0,0.06039499]
[1753166352156,0.405032,117640.0,117630.0,0.06039499]
[1753166352347,1.53195171,117640.0,117630.0,0.32808499]
[1753166352551,1.24626737,117640.0,117630.0,0.32808499]
[1753166352752,0.74594737,117640.0,117630.0,0.49802149]
[1753166353056,1.24626737,117640.0,117630.0,0.34310181]
[1753166353362,1.53195171,117640.0,117630.0,0.22217375]
[1753166353557,1.53195171,117640.0,117630.0,0.12891375]
[1753166353859,0.4050465,117630.0,117620.0,0.22217375]
[1753166354052,1.26329316,117630.0,117620.0,0.22217375]
[1753166354355,1.26329316,117630.0,117620.0,0.22217844]
[1753166354561,1.85265316,117630.0,117620.0,0.22217844]
[1753166354956,1.85265316,117630.0,117620.0,0.16137]
[1753166355160,1.85265316,117630.0,117620.0,0.22317944]
[1753166355361,1.85265316,117630.0,117620.0,0.22417944]
[1753166356864,1.85265316,117630.0,117620.0,0.26601944]
[1753166357064,1.26329316,117630.0,117620.0,0.33049944]
[1753166358953,1.85261316,117630.0,117620.0,0.33049944]
[1753166359152,1.85261316,117630.0,117620.0,0.26969]
[1753166359962,1.85261316,117630.0,117620.0,0.50045044]
[1753166360962,1.12377316,117630.0,117620.0,0.439641]
[1753166361464,0.50330213,117630.0,117620.0,0.439641]
[1753166361664,0.18694779,117630.0,117620.0,0.439641]
[1753166361960,0.47263213,117630.0,117620.0,0.439641]
[1753166362163,0.01701129,117630.0,117620.0,1.759721]
[1753166362465,0.18694789,117630.0,117620.0,1.469721]
[1753166362661,0.18694789,117630.0,117620.0,1.659721]
[1753166362967,0.51525962,117650.0,117640.0,0.4381921]
[1753166363161,0.01717908,117650.0,117640.0,1.19747209]
[1753166363361,0.18708678,117650.0,117640.0,1.55827209]
[1753166363761,0.47277112,117650.0,117640.0,1.55827209]
[1753166364255,0.56207112,117650.0,117640.0,1.3882721]
[1753166364654,0.56507112,117650.0,117640.0,1.3882721]
[1753166365054,0.56507112,117650.0,117640.0,1.40732803]
[1753166366058,0.50703112,117650.0,117640.0,1.40732803]
[1753166366364,0.47577112,117650.0,117640.0,1.40732803]
[1753166366660,0.19008678,117650.0,117640.0,1.40732803]
[1753166370168,0.47577112,117650.0,117640.0,1.40732803]
[1753166370364,0.19008678,117650.0,117640.0,1.40732803]
[1753166370570,0.47577112,117650.0,117640.0,1.40732803]
[1753166370870,0.47577112,117650.0,117640.0,1.46813747]
[1753166372572,0.47577112,117650.0,117640.0,0.87885747]
[1753166372769,0.47577112,117650.0,117640.0,1.46793747]
[1753166373670,0.56507112,117650.0,117640.0,1.46793747]
[1753166374870,0.47577112,117650.0,117640.0,1.46793747]
[1753166377777,0.19008678,117650.0,117640.0,1.78793747]
[1753166378776,0.19008678,117650.0,117640.0,1.46793747]
[1753166379678,0.47577112,117650.0,117640.0,1.46793747]
[1753166379881,0.19008678,117650.0,117640.0,1.46793747]
[1753166380180,0.47577112,117650.0,117640.0,1.46793747]
[1753166381573,0.19008678,117650.0,117640.0,1.46793747]
[1753166381773,0.47577112,117650.0,117640.0,1.46793747]
[1753166384072,0.47577112,117650.0,117640.0,1.82793747]
[1753166384274,0.02017908,117650.0,117640.0,1.75362181]
[1753166384474,0.02017908,117650.0,117640.0,2.06362181]
[1753166384885,0.19008968,117650.0,117640.0,1.75362181]
[1753166385384,0.02017908,117650.0,117640.0,1.75362181]
[1753166385686,0.1698818,117670.0,117660.0,0.4288362]
[1753166385875,0.36463283,117670.0,117660.0,1.03680024]
[1753166386185,0.1698818,117670.0,117660.0,1.03680024]
[1753166386571,0.1698818,117670.0,117660.0,1.46505227]
[1753166386777,0.1748818,117670.0,117660.0,1.75073661]
[1753166387190,0.1758818,117670.0,117660.0,1.46505227]
[1753166387483,0.006,117670.0,117660.0,2.11073661]
[1753166387685,0.18708026,117680.0,117670.0,0.4288226]
[1753166387886,0.38183129,117680.0,117670.0,1.07530694]
[1753166388080,0.38183129,117680.0,117670.0,1.3783426]
[1753166388276,0.38183129,117680.0,117670.0,1.6883426]
[1753166388480,0.38183129,117680.0,117670.0,1.3983426]
[1753166388779,0.38183129,117680.0,117670.0,1.66402694]
[1753166389281,0.38183129,117680.0,117670.0,1.3783426]
[1753166389585,0.18708026,117680.0,117670.0,1.3783426]
[1753166389785,0.18708026,117680.0,117670.0,1.3983426]
[1753166389985,0.18708026,117680.0,117670.0,1.38697218]
[1753166390186,0.18708026,117680.0,117670.0,2.01265652]
[1753166390483,0.18708026,117680.0,117670.0,2.05261652]
[1753166390683,0.18708026,117680.0,117670.0,0.79825218]
[1753166390884,0.18708026,117680.0,117670.0,1.38689218]
[1753166391186,0.18908026,117680.0,117670.0,1.38689218]
[1753166391385,0.18908026,117680.0,117670.0,1.73689218]
[1753166391883,0.18708026,117680.0,117670.0,1.73789218]
[1753166392385,0.18708026,117680.0,117670.0,1.38789218]
[1753166392784,0.18708026,117680.0,117670.0,0.79925218]
[1753166392985,0.18708026,117680.0,117670.0,1.38781218]
[1753166393184,0.4727646,117680.0,117670.0,0.79925218]
[1753166393390,0.4727646,117680.0,117670.0,1.38781218]
[1753166393685,0.4727646,117680.0,117670.0,1.44862162]
[1753166394185,0.18708026,117680.0,117670.0,1.44862162]
[1753166394884,0.4727646,117680.0,117670.0,1.44862162]
[1753166395281,0.18708026,117680.0,117670.0,1.44862162]
[1753166397685,0.4727646,117680.0,117670.0,1.44862162]
[1753166398185,0.18708026,117680.0,117670.0,1.44862162]
[1753166399481,0.01721146,117680.0,117670.0,1.73430596]
[1753166399685,0.01721146,117680.0,117670.0,2.07430596]
[1753166400184,0.61557,117700.0,117690.0,0.10217]
[1753166400385,0.72540043,117700.0,117690.0,1.367191]
[1753166400583,0.1698494,117700.0,117690.0,2.00367534]
[1753166400882,0.1698494,117700.0,117690.0,1.66367534]
[1753166400883,0.36460043,117700.0,117690.0,1.66367534]
[1753166401079,0.36460043,117700.0,117690.0,1.377991]
[1753166401280,0.36760043,117700.0,117690.0,1.707991]
[1753166401474,0.36760043,117700.0,117690.0,1.687991]
[1753166401687,0.36760043,117700.0,117690.0,1.377991]
[1753166401887,0.68553477,117700.0,117690.0,1.377991]
[1753166402085,0.74691477,117700.0,117690.0,1.377991]
[1753166403189,0.75876477,117700.0,117690.0,1.377991]
[1753166403691,0.47308043,117700.0,117690.0,1.377991]
[1753166403889,0.47008043,117700.0,117690.0,1.378991]
[1753166404086,0.36460043,117700.0,117690.0,1.378991]
[1753166405592,0.36460043,117700.0,117690.0,1.738991]
[1753166405889,0.36460043,117700.0,117690.0,1.378991]
[1753166406193,0.36460043,117700.0,117690.0,1.748991]
[1753166406391,0.36460043,117700.0,117690.0,1.378991]
[1753166406988,0.36460043,117700.0,117690.0,1.708991]
[1753166407388,0.36460043,117700.0,117690.0,1.698991]
[1753166407584,0.54042794,117710.0,117700.0,0.1816466]
[1753166407788,0.44949463,117710.0,117700.0,0.4287766]
[1753166408194,0.40703563,117710.0,117700.0,0.4287766]
[1753166408492,0.36457953,117710.0,117700.0,0.4287766]
[1753166409899,0.36457953,117710.0,117700.0,0.7895766]
[1753166412602,0.1698285,117710.0,117700.0,0.7895766]
[1753166412805,0.45820953,117710.0,117700.0,0.7895766]
[1753166417207,0.45820953,117710.0,117700.0,0.85019074]
[1753166417708,0.45820953,117710.0,117700.0,0.7895766]
[1753166418707,0.74389387,117710.0,117700.0,0.7895766]
[1753166418904,0.56068284,117710.0,117700.0,0.61974]
[1753166419208,0.90745387,117710.0,117700.0,0.84694]
[1753166419709,0.90745387,117710.0,117700.0,1.0167766]
[1753166421809,0.89024387,117710.0,117700.0,1.0167766]
[1753166423509,0.90745387,117710.0,117700.0,1.0167766]
[1753166426912,1.26825387,117710.0,117700.0,1.0167766]
[1753166427714,1.26825387,117710.0,117700.0,0.20014]
[1753166427909,0.4260066,117700.0,117690.0,0.22337414]
[1753166428219,1.26724197,117700.0,117690.0,0.78775414]
[1753166428514,1.28421474,117700.0,117690.0,0.10857414]
[1753166428811,0.169851,117690.0,117680.0,0.90582107]
[1753166429016,1.26725637,117690.0,117680.0,0.8300534]
[1753166429518,1.26725637,117690.0,117680.0,0.76943926]
[1753166430818,1.26725637,117690.0,117680.0,0.93930466]
[1753166431218,1.26725637,117690.0,117680.0,0.76943926]
[1753166432113,1.26725637,117690.0,117680.0,1.04495476]
[1753166432317,1.25004637,117690.0,117680.0,1.04495476]
[1753166433019,1.26725637,117690.0,117680.0,1.04495476]
[1753166433621,1.25004637,117690.0,117680.0,1.04495476]
[1753166433820,1.20750637,117690.0,117680.0,1.04495476]
[1753166434318,1.25004637,117690.0,117680.0,1.04695476]
[1753166435021,1.25004637,117690.0,117680.0,1.04595476]
[1753166435721,1.26725637,117690.0,117680.0,1.04595476]
[1753166436325,0.90645637,117690.0,117680.0,1.04595476]
[1753166437516,0.90645637,117690.0,117680.0,0.16376]
[1753166437716,0.4260354,117680.0,117670.0,0.19995414]
[1753166437923,2.15803338,117680.0,117670.0,0.06061414]
[1753166438519,2.15803338,117680.0,117660.0,0.83029818]
[1753166438520,1.98816798,117680.0,117660.0,0.83029818]
[1753166438727,1.26728527,117670.0,117660.0,0.76968404]
[1753166438929,1.26728527,117670.0,117660.0,0.15854404]
[1753166439627,1.33389515,117670.0,117660.0,0.15854404]
[1753166440522,1.33389515,117670.0,117660.0,0.18196404]
[1753166440723,1.33389515,117670.0,117660.0,0.18296404]
[1753166440922,1.33389515,117670.0,117660.0,0.28861404]
[1753166441123,1.33389515,117670.0,117660.0,0.28761404]
[1753166441327,1.33389515,117670.0,117660.0,0.28961404]
[1753166441928,1.18187515,117670.0,117660.0,0.80950834]
[1753166442129,1.70298527,117670.0,117660.0,0.80950834]
[1753166442531,1.70298527,117670.0,117660.0,0.45950834]
[1753166442726,1.79525527,117670.0,117660.0,0.45950834]
[1753166443432,1.79525527,117670.0,117660.0,0.81950834]
[1753166443628,1.20753527,117670.0,117660.0,0.81950834]
[1753166443930,1.20753527,117670.0,117660.0,0.76950834]
[1753166444532,1.27483192,117670.0,117660.0,0.76950834]
[1753166445333,1.31737192,117670.0,117660.0,0.76950834]
[1753166446938,1.25007527,117670.0,117660.0,0.76950834]
[1753166448337,1.26728527,117670.0,117660.0,0.76950834]
[1753166449337,1.26728527,117670.0,117660.0,0.28961404]
[1753166449539,1.26728527,117670.0,117660.0,0.18396404]
[1753166449835,1.26728527,117670.0,117660.0,0.74818404]
[1753166450031,1.07253424,117670.0,117660.0,0.74818404]
[1753166450236,1.26728527,117670.0,117660.0,0.77147404]
[1753166451230,1.26728527,117670.0,117660.0,0.75227]
[1753166451435,1.26728527,117670.0,117660.0,0.72898]
[1753166451636,1.26728527,117670.0,117660.0,0.14134]
[1753166453135,1.26728527,117670.0,117660.0,0.002]
[1753166453327,1.26728527,117670.0,117660.0,0.05114]
[1753166453532,1.26728527,117670.0,117660.0,0.1352]
[1753166454433,1.26728527,117670.0,117660.0,0.25042]
[1753166455434,1.26728527,117670.0,117660.0,0.26247]
[1753166455834,1.26728527,117670.0,117660.0,0.4323643]
[1753166456032,1.25007527,117670.0,117660.0,0.4323643]
[1753166457639,1.26728527,117670.0,117660.0,0.4323643]
[1753166458436,1.25007527,117670.0,117660.0,0.7723643]
[1753166458633,0.6348299,117670.0,117660.0,0.7723643]
[1753166458841,0.5306799,117670.0,117660.0,1.05804864]
[1753166459140,0.91782424,117670.0,117660.0,0.7423643]
[1753166459540,0.55702424,117670.0,117660.0,0.7723643]
[1753166459738,0.64719424,117670.0,117660.0,0.7723643]
[1753166459937,0.68973424,117670.0,117660.0,0.7723643]
[1753166460140,0.68973424,117670.0,117660.0,0.4323643]
[1753166460340,0.68973424,117670.0,117660.0,0.7923643]
[1753166460540,0.64719424,117670.0,117660.0,0.7923643]
[1753166460741,0.55702424,117670.0,117660.0,0.7923643]
[1753166463049,0.55702424,117670.0,117660.0,0.4323643]
[1753166463250,0.55702424,117670.0,117660.0,0.7923643]
[1753166466450,0.64719424,117670.0,117660.0,0.7923643]
[1753166466649,0.84194527,117670.0,117660.0,0.41114]
[1753166466855,1.26249527,117670.0,117660.0,0.58936]
[1753166467044,1.26249527,117670.0,117660.0,0.002]
[1753166467240,1.26249527,117670.0,117660.0,0.05114]
[1753166467550,1.26249527,117670.0,117660.0,0.15849]
[1753166468158,1.26249527,117670.0,117660.0,0.21910414]
[1753166468752,1.26249527,117670.0,117660.0,0.80646414]
[1753166472657,1.84977527,117670.0,117660.0,0.80646414]
[1753166474859,1.84977527,117670.0,117660.0,0.21910414]
[1753166476957,1.84977527,117670.0,117660.0,0.19581414]
[1753166477149,1.84977527,117670.0,117660.0,0.06261414]
[1753166477953,1.84977527,117670.0,117660.0,0.002]
[1753166479263,1.84977527,117670.0,117660.0,0.05071]
[1753166479459,1.84977527,117670.0,117660.0,0.13721]
[1753166479658,1.84977527,117670.0,117660.0,0.16197]
[1753166480756,1.84977527,117670.0,117660.0,0.22258414]
[1753166481553,1.84977527,117670.0,117660.0,0.19782414]
[1753166483867,1.84977527,117670.0,117660.0,0.13721]
[1753166484465,1.56409093,117670.0,117660.0,0.16197]
[1753166484664,1.84977527,117670.0,117660.0,0.16197]
[1753166485166,1.84953527,117670.0,117660.0,0.19427]
[1753166485367,1.84953527,117670.0,117660.0,0.32243414]
[1753166485867,1.84953527,117670.0,117660.0,0.26182]
[1753166489371,1.84953527,117670.0,117660.0,0.19427]
[1753166491774,1.84953527,117670.0,117660.0,0.23987226]
[1753166492575,0.4004289,117650.0,117640.0,0.25982]
[1753166492876,0.68611324,117650.0,117640.0,0.4297421]
[1753166493575,1.04691324,117650.0,117640.0,0.4297421]
[1753166493872,1.04691324,117650.0,117640.0,0.4307421]
[1753166494264,1.04691324,117650.0,117640.0,0.26082]
[1753166494473,0.7612289,117650.0,117640.0,0.26082]
[1753166494773,1.06412324,117650.0,117640.0,0.26082]
[1753166495677,1.06412324,117650.0,117640.0,0.32162302]
[1753166496073,1.25887427,117650.0,117640.0,0.32162302]
[1753166497875,1.84575427,117650.0,117640.0,0.32162302]
[1753166498267,1.84575427,117650.0,117640.0,0.26082]
[1753166499176,1.84575427,117650.0,117640.0,0.49154632]
[1753166499475,1.84575427,117650.0,117640.0,0.4307433]
[1753166501383,1.24166427,117650.0,117640.0,0.4307433]
[1753166501679,0.91673324,117650.0,117640.0,0.7507433]
[1753166502377,1.00437324,117650.0,117640.0,0.7507433]
[1753166502578,0.7186889,117650.0,117640.0,0.7507433]
[1753166502778,1.00437324,117650.0,117640.0,0.7507433]
[1753166503179,0.29008404,117660.0,117650.0,0.1699089]
[1753166503380,0.37234874,117660.0,117650.0,1.3665289]
[1753166503675,0.18704844,117660.0,117650.0,1.65221324]
[1753166503877,0.18704844,117660.0,117650.0,1.3665289]
[1753166504075,0.18704844,117660.0,117650.0,1.3773289]
[1753166504378,0.18804844,117660.0,117650.0,1.7273289]
[1753166504769,0.18804844,117660.0,117650.0,1.3773289]
[1753166504979,0.18804844,117660.0,117650.0,1.7373289]
[1753166505375,0.19004844,117660.0,117650.0,1.7373289]
[1753166506588,0.19004844,117660.0,117650.0,1.3773289]
[1753166506784,0.19004844,117660.0,117650.0,1.7473289]
[1753166507286,0.19004844,117660.0,117650.0,2.03301324]
[1753166507480,0.19004844,117660.0,117650.0,1.7473289]
[1753166507681,0.19004844,117660.0,117650.0,2.03301324]
[1753166508480,0.02015404,117660.0,117650.0,2.03301324]
[1753166508678,0.02015404,117660.0,117650.0,2.45300524]
[1753166508884,0.1698898,117670.0,117660.0,0.4260542]
[1753166508885,0.2123606,117670.0,117660.0,0.4260542]
[1753166509189,0.2123606,117670.0,117660.0,1.1168542]
[1753166509580,0.1698898,117670.0,117660.0,0.7868542]
[1753166509884,0.45557414,117670.0,117660.0,1.7235742]
[1753166510082,0.1708898,117670.0,117660.0,1.7235742]
[1753166510286,0.1708898,117670.0,117660.0,1.7535742]
[1753166510487,0.1728898,117670.0,117660.0,1.7535742]
[1753166510687,0.1728898,117670.0,117660.0,1.82034676]
[1753166510983,0.1728898,117670.0,117660.0,1.89635053]
[1753166511188,0.1728898,117670.0,117660.0,1.87635053]
[1753166511374,0.45857414,117670.0,117660.0,0.92963053]
[1753166511580,0.45857414,117670.0,117660.0,1.83627053]
[1753166511882,0.1728898,117670.0,117660.0,0.92963053]
[1753166512188,0.1728898,117670.0,117660.0,1.87627053]
[1753166512385,0.1728898,117670.0,117660.0,1.80026676]
[1753166513084,0.1728898,117670.0,117660.0,1.87627053]
[1753166513787,0.1728898,117670.0,117660.0,1.80026676]
[1753166514489,0.1728898,117670.0,117660.0,1.79026676]
[1753166515090,0.45857414,117670.0,117660.0,1.07946676]
[1753166515286,0.54363414,117670.0,117660.0,1.14014761]
[1753166515584,0.54363414,117670.0,117660.0,1.45014761]
[1753166515784,0.54363414,117670.0,117660.0,1.81094761]
[1753166515985,0.2699298,117670.0,117660.0,1.14014761]
[1753166516192,0.58020414,117670.0,117660.0,1.85094761]
[1753166516688,0.58020414,117670.0,117660.0,1.50094761]
[1753166516889,0.58020414,117670.0,117660.0,1.84094761]
[1753166517278,0.58020414,117670.0,117660.0,1.50094761]
[1753166517482,0.58020414,117670.0,117660.0,1.76026676]
[1753166518085,0.90215517,117670.0,117660.0,1.09946676]
[1753166518482,0.90015517,117670.0,117660.0,1.10046676]
[1753166518998,0.90015517,117670.0,117660.0,1.16114761]
[1753166519283,0.90015517,117670.0,117660.0,1.10046676]
[1753166519479,0.90015517,117670.0,117660.0,1.16114761]
[1753166520289,0.90015517,117670.0,117660.0,1.10046676]
[1753166520689,0.61447083,117670.0,117660.0,1.10046676]
[1753166520888,0.1708898,117670.0,117660.0,1.43046676]
[1753166521083,0.1698898,117670.0,117660.0,1.43046676]
[1753166521492,0.1698898,117670.0,117660.0,1.7161511]
[1753166522289,0.1698898,117670.0,117660.0,1.43046676]
[1753166522787,0.57720414,117670.0,117660.0,1.08046676]
[1753166523090,0.57720414,117670.0,117660.0,1.39046676]
[1753166523592,0.55261414,117670.0,117660.0,1.39046676]
[1753166523995,0.2669298,117670.0,117660.0,1.45114761]
[1753166524189,0.55261414,117670.0,117660.0,1.45114761]
[1753166524796,0.2669298,117670.0,117660.0,1.45114761]
[1753166524995,0.55261414,117670.0,117660.0,1.45114761]
[1753166525392,0.55261414,117670.0,117660.0,1.15114761]
[1753166525593,0.55261414,117670.0,117660.0,1.50114761]
[1753166525895,0.57720414,117670.0,117660.0,1.50114761]
[1753166526094,0.2915198,117670.0,117660.0,1.50114761]
[1753166526294,0.55261414,117670.0,117660.0,1.15114761]
[1753166526496,0.89915517,117670.0,117660.0,1.15114761]
[1753166526695,0.89915517,117670.0,117660.0,1.48114761]
[1753166527396,0.89915517,117670.0,117660.0,1.15114761]
[1753166527598,0.89915517,117670.0,117660.0,1.52114761]
[1753166527891,0.61347083,117670.0,117660.0,0.99125341]
[1753166528092,0.70440414,117670.0,117660.0,0.99125341]
[1753166528298,0.89915517,117670.0,117660.0,0.99125341]
[1753166528499,0.89915517,117670.0,117660.0,1.16014711]
[1753166528698,0.90015517,117670.0,117660.0,1.16014711]
[1753166529292,0.90015517,117670.0,117660.0,0.99025341]
[1753166529898,0.61447083,117670.0,117660.0,0.99025341]
[1753166530199,0.90015517,117670.0,117660.0,0.99025341]
[1753166530796,0.90015517,117670.0,117660.0,0.92957256]
[1753166531298,0.90015517,117670.0,117660.0,0.99025341]
[1753166532703,0.61447083,117670.0,117660.0,1.16014701]
[1753166533000,0.90015517,117670.0,117660.0,1.16014701]
[1753166535503,0.90015517,117670.0,117660.0,0.92957256]
[1753166535700,0.90015517,117670.0,117660.0,1.09946616]
[1753166536203,0.90015517,117670.0,117660.0,0.92957256]
[1753166536595,1.26095517,117670.0,117660.0,0.92957256]
[1753166537504,1.26095517,117670.0,117660.0,0.93145256]